lending/lending_fUSD_20251016
["ID","MTS","AMOUNT","RATE_DAILY","PERIOD"]
[391484688,1760619042535,-1959.91,0.00019178,2]
[391484689,1760619042544,-500.0,0.00019178,2]
[391484690,1760619042554,-1125.4,0.00019178,2]
[391484691,1760619042563,-500.0,0.00019178,2]
[391484692,1760619042572,-613.12503391,0.00019178,2]
[391484725,1760619042964,-230.33496609,0.00019178,2]
[391484727,1760619042974,-500.0,0.00019178,2]
[391484729,1760619042983,-500.0,0.00019178,2]
[391484731,1760619042993,-1974.91,0.00019178,2]
[391484733,1760619043003,-500.0,0.00019178,2]
[391484735,1760619043012,-563.79,0.00019178,2]
[391484738,1760619043022,-500.0,0.00019178,2]
[391484741,1760619043031,-500.0,0.00019178,2]
[391484744,1760619043040,-361.70403392,0.00019178,2]
[391484833,1760619043733,-138.29596608,0.00019178,2]
[391484835,1760619043743,-497.39546742,0.00019178,2]
[391484837,1760619043754,-2.60453258,0.00019178,2]
[391484839,1760619043763,-500.0,0.00019178,2]
[391484841,1760619043773,-500.0,0.00019178,2]
[391484843,1760619043782,-500.0,0.00019178,2]
[391484845,1760619043791,-548.46,0.00019178,2]
[391484847,1760619043800,-500.0,0.00019178,2]
[391484849,1760619043808,-500.0,0.00019178,2]
[391484851,1760619043817,-500.0,0.00019178,2]
[391484853,1760619043826,-698.68,0.00019178,2]
[391484855,1760619043836,-500.0,0.00019178,2]
[391484857,1760619043845,-500.0,0.00019178,2]
[391484859,1760619043855,-727.71,0.00019178,2]
[391484861,1760619043864,-992.46,0.00019178,2]
[391484863,1760619043873,-500.0,0.00019178,2]
[391484865,1760619043882,-2139.53,0.00019178,2]
[391484867,1760619043892,-500.0,0.00019178,2]
[391484869,1760619043901,-500.0,0.00019178,2]
[391484871,1760619043910,-500.0,0.00019178,2]
[391484873,1760619043919,-1977.59,0.00019178,2]
[391484875,1760619043928,-1977.59,0.00019178,2]
[391484877,1760619043937,-500.0,0.00019178,2]
[391484879,1760619043949,-1637.68,0.00019178,2]
[391484881,1760619043958,-500.0,0.00019178,2]
[391484883,1760619043968,-4922.15,0.00019178,2]
[391484885,1760619043977,-500.0,0.00019178,2]
[391484887,1760619043986,-2902.21,0.00019178,2]
[391484889,1760619043995,-968.47,0.00019178,2]
[391484891,1760619044005,-500.0,0.00019178,2]
[391484893,1760619044014,-500.0,0.00019178,2]
[391484895,1760619044023,-1242.94,0.00019178,2]
[391484897,1760619044032,-500.0,0.00019178,2]
[391484899,1760619044042,-1056.31,0.00019178,2]
[391484901,1760619044052,-668.08,0.00019178,2]
[391484903,1760619044061,-2495.74,0.00019178,2]
[391484905,1760619044070,-500.0,0.00019178,2]
[391484907,1760619044079,-500.0,0.00019178,2]
[391484909,1760619044089,-2445.55,0.00019178,2]
[391484911,1760619044098,-500.0,0.00019178,2]
[391484913,1760619044107,-500.0,0.00019178,2]
[391484915,1760619044116,-500.0,0.00019178,2]
[391484917,1760619044125,-500.0,0.00019178,2]
[391484919,1760619044134,-1634.51,0.00019178,2]
[391484921,1760619044143,-734.24,0.00019178,2]
[391484923,1760619044152,-1005.52,0.00019178,2]
[391484925,1760619044162,-500.0,0.00019178,2]
[391484927,1760619044171,-1364.8,0.00019178,2]
[391484929,1760619044180,-500.0,0.00019178,2]
[391484931,1760619044190,-1053.86,0.00019178,2]
[391484933,1760619044200,-2909.85,0.00019178,2]
[391484935,1760619044209,-651.42,0.00019178,2]
[391484937,1760619044218,-975.42,0.00019178,2]
[391484939,1760619044227,-1262.0,0.00019178,2]
[391484941,1760619044236,-576.05,0.00019178,2]
[391484943,1760619044245,-1199.18,0.00019178,2]
[391484945,1760619044254,-1559.65,0.00019178,2]
[391484947,1760619044263,-500.0,0.00019178,2]
[391484949,1760619044272,-500.0,0.00019178,2]
[391484951,1760619044281,-1247.41,0.00019178,2]
[391484953,1760619044290,-1777.32,0.00019178,2]
[391484955,1760619044299,-500.0,0.00019178,2]
[391484957,1760619044308,-1358.12,0.00019178,2]
[391484959,1760619044318,-650.07,0.00019178,2]
[391484961,1760619044327,-500.0,0.00019178,2]
[391484963,1760619044336,-1685.98,0.00019178,2]
[391484965,1760619044345,-500.0,0.00019178,2]
[391484967,1760619044355,-1258.92,0.00019178,2]
[391484969,1760619044364,-500.0,0.00019178,2]
[391484971,1760619044373,-500.0,0.00019178,2]
[391484973,1760619044383,-1495.5,0.00019178,2]
[391484976,1760619044394,-2114.56,0.00019178,2]
[391484978,1760619044404,-996.99,0.00019178,2]
[391484980,1760619044413,-610.65,0.00019178,2]
[391484982,1760619044423,-500.0,0.00019178,2]
[391484983,1760619044432,-500.0,0.00019178,2]
[391484985,1760619044442,-500.0,0.00019178,2]
[391484988,1760619044452,-500.0,0.00019178,2]
[391484990,1760619044461,-3064.97,0.00019178,2]
[391484992,1760619044471,-500.0,0.00019178,2]
[391484994,1760619044480,-1574.72,0.00019178,2]
[391484995,1760619044489,-3703.17,0.00019178,2]
[391484997,1760619044498,-500.0,0.00019178,2]
[391485000,1760619044508,-1167.6,0.00019178,2]
[391485002,1760619044517,-500.0,0.00019178,2]
[391485004,1760619044526,-500.0,0.00019178,2]
[391485005,1760619044536,-500.0,0.00019178,2]
[391485007,1760619044545,-2344.57,0.00019178,2]
[391485009,1760619044555,-848.97,0.00019178,2]
[391485011,1760619044564,-500.0,0.00019178,2]
[391485012,1760619044573,-4515.55,0.00019178,2]
[391485013,1760619044581,-690.24,0.00019178,2]
[391485015,1760619044590,-500.0,0.00019178,2]
[391485017,1760619044600,-2390.82,0.00019178,2]
[391485019,1760619044609,-550.49,0.00019178,2]
[391485021,1760619044618,-500.0,0.00019178,2]
[391485023,1760619044627,-804.38,0.00019178,2]
[391485025,1760619044636,-500.0,0.00019178,2]
[391485027,1760619044645,-500.0,0.00019178,2]
[391485029,1760619044654,-500.0,0.00019178,2]
[391485031,1760619044663,-500.0,0.00019178,2]
[391485033,1760619044672,-1228.39,0.00019178,2]
[391485035,1760619044681,-1091.8,0.00019178,2]
[391485037,1760619044690,-500.0,0.00019178,2]
[391485039,1760619044700,-914.27,0.00019178,2]
[391485041,1760619044710,-2030.99,0.00019178,2]
[391485043,1760619044719,-3395.74,0.00019178,2]
[391485045,1760619044730,-1643.67,0.00019178,2]
[391485047,1760619044740,-500.0,0.00019178,2]
[391485049,1760619044749,-500.0,0.00019178,2]
[391485051,1760619044759,-500.0,0.00019178,2]
[391485053,1760619044768,-605.51,0.00019178,2]
[391485055,1760619044779,-2893.83,0.00019178,2]
[391485057,1760619044788,-500.0,0.00019178,2]
[391485059,1760619044797,-3206.98,0.00019178,2]
[391485061,1760619044807,-500.0,0.00019178,2]
[391485063,1760619044816,-834.4,0.00019178,2]
[391485065,1760619044825,-500.0,0.00019178,2]
[391485067,1760619044834,-1163.66,0.00019178,2]
[391485069,1760619044843,-993.98,0.00019178,2]
[391485071,1760619044852,-500.0,0.00019178,2]
[391485073,1760619044862,-2166.62,0.00019178,2]
[391485075,1760619044872,-977.87,0.00019178,2]
[391485077,1760619044884,-1098.85,0.00019178,2]
[391485079,1760619044892,-1059.22,0.00019178,2]
[391485081,1760619044901,-1342.17,0.00019178,2]
[391485083,1760619044911,-682.53,0.00019178,2]
[391485085,1760619044920,-500.0,0.00019178,2]
[391485087,1760619044930,-1255.72,0.00019178,2]
[391485089,1760619044940,-548.57,0.00019178,2]
[391485091,1760619044951,-500.0,0.00019178,2]
[391485093,1760619044960,-500.0,0.00019178,2]
[391485095,1760619044969,-1384.82,0.00019178,2]
[391485097,1760619044979,-1214.52,0.00019178,2]
[391485099,1760619044988,-500.0,0.00019178,2]
[391485101,1760619044997,-307.24453155,0.00019178,2]
[391485103,1760619045006,-500.0,0.00019178,2]
[391485105,1760619045016,-500.0,0.00019178,2]
[391485107,1760619045025,-500.0,0.00019178,2]
[391485109,1760619045034,-2659.74,0.00019178,2]
[391485111,1760619045043,-500.0,0.00019178,2]
[391485113,1760619045052,-500.0,0.00019178,2]
[391485115,1760619045061,-952.21,0.00019178,2]
[391485117,1760619045071,-4881.9,0.00019178,2]
[391485119,1760619045081,-500.0,0.00019178,2]
[391485122,1760619045091,-500.0,0.00019178,2]
[391485150,1760619045345,-1001.9,0.00019178,2]
[391485152,1760619045355,-2299.68,0.00019178,2]
[391485154,1760619045364,-1150.84,0.00019178,2]
[391485156,1760619045374,-977.85,0.00019178,2]
[391485158,1760619045384,-2652.96,0.00019178,2]
[391485159,1760619045393,-638.08,0.00019178,2]
[391485162,1760619045403,-2283.31,0.00019178,2]
[391485164,1760619045412,-3213.56,0.00019178,2]
[391485165,1760619045422,-500.0,0.00019178,2]
[391485167,1760619045431,-3529.73,0.00019178,2]
[391485169,1760619045441,-500.0,0.00019178,2]
[391485172,1760619045452,-500.0,0.00019178,2]
[391485174,1760619045462,-1566.65,0.00019178,2]
[391485176,1760619045473,-500.0,0.00019178,2]
[391485178,1760619045483,-500.0,0.00019178,2]
[391485180,1760619045492,-254.78318057,0.00019178,2]
[391485182,1760619045501,-1877.83,0.00019178,2]
[391485184,1760619045511,-500.0,0.00019178,2]
[391485186,1760619045520,-1412.24,0.00019178,2]
[391485188,1760619045529,-217.15745633,0.00019178,2]
[391485190,1760619045539,-1922.35,0.00019178,2]
[391485192,1760619045548,-1086.85,0.00019178,2]
[391485194,1760619045557,-1665.93,0.00019178,2]
[391485196,1760619045567,-500.0,0.00019178,2]
[391485198,1760619045576,-1401.42,0.00019178,2]
[391485200,1760619045586,-2271.02,0.00019178,2]
[391485201,1760619045596,-500.0,0.00019178,2]
[391485204,1760619045606,-900.68,0.00019178,2]
[391485206,1760619045615,-500.0,0.00019178,2]
[391485207,1760619045628,-1167.4,0.00019178,2]
[391485210,1760619045640,-500.0,0.00019178,2]
[391485211,1760619045650,-500.0,0.00019178,2]
[391485214,1760619045661,-500.0,0.00019178,2]
[391485216,1760619045672,-500.0,0.00019178,2]
[391485218,1760619045681,-2343.6,0.00019178,2]
[391485220,1760619045691,-500.0,0.00019178,2]
[391485222,1760619045701,-500.0,0.00019178,2]
[391485224,1760619045711,-500.0,0.00019178,2]
[391485226,1760619045720,-500.0,0.00019178,2]
[391485228,1760619045732,-500.0,0.00019178,2]
[391485230,1760619045742,-694.45,0.00019178,2]
[391485232,1760619045751,-500.0,0.00019178,2]
[391485234,1760619045760,-500.0,0.00019178,2]
[391485236,1760619045769,-513.1,0.00019178,2]
[391485238,1760619045779,-278.95878614,0.00019178,2]
[391485240,1760619045788,-500.0,0.00019178,2]
[391485242,1760619045798,-2303.96,0.00019178,2]
[391485243,1760619045808,-500.0,0.00019178,2]
[391485245,1760619045817,-500.0,0.00019178,2]
[391485247,1760619045827,-500.0,0.00019178,2]
[391485249,1760619045836,-1801.47,0.00019178,2]
[391485251,1760619045845,-881.8,0.00019178,2]
[391485253,1760619045854,-1541.78,0.00019178,2]
[391485255,1760619045863,-500.0,0.00019178,2]
[391485257,1760619045873,-1989.95,0.00019178,2]
[391485260,1760619045883,-500.0,0.00019178,2]
[391485261,1760619045892,-643.35,0.00019178,2]
[391485264,1760619045902,-500.0,0.00019178,2]
[391485266,1760619045911,-2349.79,0.00019178,2]
[391485268,1760619045920,-500.0,0.00019178,2]
[391485270,1760619045929,-954.78,0.00019178,2]
[391485272,1760619045939,-954.78,0.00019178,2]
[391485274,1760619045949,-500.0,0.00019178,2]
[391485276,1760619045958,-768.38,0.00019178,2]
[391485278,1760619045968,-500.0,0.00019178,2]
[391485280,1760619045977,-1437.9,0.00019178,2]
[391485282,1760619045987,-585.99,0.00019178,2]
[391485284,1760619045996,-718.33,0.00019178,2]
[391485286,1760619046005,-500.0,0.00019178,2]
[391485288,1760619046014,-500.0,0.00019178,2]
[391485290,1760619046023,-500.0,0.00019178,2]
[391485292,1760619046033,-500.0,0.00019178,2]
[391485294,1760619046042,-1765.39,0.00019178,2]
[391485296,1760619046051,-3541.58,0.00019178,2]
[391485298,1760619046061,-500.0,0.00019178,2]
[391485300,1760619046070,-2336.35,0.00019178,2]
[391485302,1760619046079,-500.0,0.00019178,2]
[391485304,1760619046089,-1050.26,0.00019178,2]
[391485306,1760619046098,-1957.35,0.00019178,2]
[391485308,1760619046107,-500.0,0.00019178,2]
[391485310,1760619046116,-500.0,0.00019178,2]
[391485312,1760619046125,-500.0,0.00019178,2]
[391485314,1760619046135,-2408.96,0.00019178,2]
[391485316,1760619046144,-397.87753957,0.00019178,2]
[391485318,1760619046153,-500.90045321,0.00019178,2]
[391485320,1760619046162,-500.0,0.00019178,2]
[391485322,1760619046171,-3795.48,0.00019178,2]
[391485324,1760619046181,-500.0,0.00019178,2]
[391485326,1760619046190,-500.0,0.00019178,2]
[391485328,1760619046200,-609.06414563,0.00019178,2]
[391485330,1760619046210,-500.0,0.00019178,2]
[391485331,1760619046219,-500.0,0.00019178,2]
[391485334,1760619046228,-500.0,0.00019178,2]
[391485335,1760619046238,-500.0,0.00019178,2]
[391485337,1760619046247,-3041.38,0.00019178,2]
[391485339,1760619046256,-621.07,0.00019178,2]
[391485341,1760619046266,-500.0,0.00019178,2]
[391485343,1760619046275,-553.11,0.00019178,2]
[391485345,1760619046285,-500.0,0.00019178,2]
[391485347,1760619046295,-500.0,0.00019178,2]
[391485349,1760619046304,-500.0,0.00019178,2]
[391485351,1760619046314,-3059.41,0.00019178,2]
[391485353,1760619046323,-500.0,0.00019178,2]
[391485356,1760619046333,-605.12,0.00019178,2]
[391485358,1760619046343,-1320.47,0.00019178,2]
[391485360,1760619046352,-747.87,0.00019178,2]
[391485362,1760619046361,-3804.74,0.00019178,2]
[391485364,1760619046371,-500.0,0.00019178,2]
[391485366,1760619046380,-500.0,0.00019178,2]
[391485368,1760619046389,-500.0,0.00019178,2]
[391485370,1760619046399,-3274.14,0.00019178,2]
[391485372,1760619046408,-500.0,0.00019178,2]
[391485374,1760619046417,-510.68,0.00019178,2]
[391485376,1760619046427,-639.13,0.00019178,2]
[391485378,1760619046437,-1054.61,0.00019178,2]
[391485380,1760619046446,-500.0,0.00019178,2]
[391485382,1760619046455,-2982.66,0.00019178,2]
[391485384,1760619046465,-2501.87,0.00019178,2]
[391485386,1760619046474,-2727.14,0.00019178,2]
[391485388,1760619046485,-610.09,0.00019178,2]
[391485390,1760619046494,-5899.36,0.00019178,2]
[391485392,1760619046503,-427.59083654,0.00019178,2]
[391485394,1760619046513,-1721.37,0.00019178,2]
[391485396,1760619046524,-500.0,0.00019178,2]
[391485398,1760619046533,-500.0,0.00019178,2]
[391485400,1760619046543,-1142.18,0.00019178,2]
[391485402,1760619046553,-685.91,0.00019178,2]
[391485404,1760619046562,-500.0,0.00019178,2]
[391485406,1760619046571,-5107.001933,0.00019178,2]
[391485408,1760619046580,-317.93001,0.00019178,2]
[391485410,1760619046589,-1063.09,0.00019178,2]
[391485412,1760619046599,-632.8,0.00019178,2]
[391485414,1760619046608,-419.737934,0.00019178,2]
[391485416,1760619046617,-1352.25,0.00019178,2]
[391485418,1760619046626,-285.180413,0.00019178,2]
[391485420,1760619046635,-11346.257404,0.00019178,2]
[391485422,1760619046645,-211.95334,0.00019178,2]
[391485424,1760619046654,-500.0,0.00019178,2]
[391485426,1760619046663,-4020.21,0.00019178,2]
[391485428,1760619046673,-500.0,0.00019178,2]
[391485430,1760619046682,-500.0,0.00019178,2]
[391485432,1760619046692,-2579.71,0.00019178,2]
[391485434,1760619046701,-1364.55,0.00019178,2]
[391485436,1760619046710,-501.06211716,0.00019178,2]
[391485438,1760619046720,-500.0,0.00019178,2]
[391485440,1760619046732,-500.0,0.00019178,2]
[391485442,1760619046743,-6479.82777,0.00019178,2]
[391485444,1760619046752,-5581.61,0.00019178,2]
[391485446,1760619046761,-500.0,0.00019178,2]
[391485448,1760619046771,-500.0,0.00019178,2]
[391485450,1760619046780,-3580.28,0.00019178,2]
[391485452,1760619046789,-1271.54,0.00019178,2]
[391485454,1760619046798,-500.0,0.00019178,2]
[391485456,1760619046808,-1560.42,0.00019178,2]
[391485458,1760619046818,-3640.83,0.00019178,2]
[391485460,1760619046827,-1653.45,0.00019178,2]
[391485462,1760619046836,-500.0,0.00019178,2]
[391485464,1760619046845,-500.0,0.00019178,2]
[391485466,1760619046855,-500.0,0.00019178,2]
[391485467,1760619046866,-500.0,0.00019178,2]
[391485469,1760619046883,-2775.15,0.00019178,2]
[391485471,1760619046899,-4868.54,0.00019178,2]
[391485473,1760619046909,-500.0,0.00019178,2]
[391485475,1760619046919,-2235.85,0.00019178,2]
[391485477,1760619046929,-1037.79,0.00019178,2]
[391485479,1760619046938,-500.0,0.00019178,2]
[391485481,1760619046949,-3695.6,0.00019178,2]
[391485483,1760619046958,-625.87,0.00019178,2]
[391485485,1760619046967,-699.17,0.00019178,2]
[391485487,1760619046977,-500.0,0.00019178,2]
[391485489,1760619046988,-500.0,0.00019178,2]
[391485491,1760619046997,-4283.71,0.00019178,2]
[391485492,1760619047007,-500.0,0.00019178,2]
[391485493,1760619047017,-274.23723397,0.00019178,2]
[391485494,1760619047026,-778.72,0.00019178,2]
[391485495,1760619047035,-500.0,0.00019178,2]
[391485496,1760619047044,-882.12,0.00019178,2]
[391485497,1760619047053,-998.55,0.00019178,2]
[391485498,1760619047062,-500.0,0.00019178,2]
[391485499,1760619047071,-646.21,0.00019178,2]
[391485500,1760619047081,-500.0,0.00019178,2]
[391485502,1760619047090,-500.0,0.00019178,2]
[391485504,1760619047099,-404.20875021,0.00019178,2]
[391485506,1760619047109,-500.0,0.00019178,2]
[391485508,1760619047118,-500.0,0.00019178,2]
[391485510,1760619047128,-1420.56,0.00019178,2]
[391485512,1760619047138,-500.0,0.00019178,2]
[391485514,1760619047147,-1124.28,0.00019178,2]
[391485516,1760619047156,-500.0,0.00019178,2]
[391485518,1760619047166,-1110.96,0.00019178,2]
[391485520,1760619047175,-500.0,0.00019178,2]
[391485522,1760619047184,-985.83,0.00019178,2]
[391485524,1760619047195,-500.0,0.00019178,2]
[391485526,1760619047204,-354.92696337,0.00019178,2]
[391485528,1760619047213,-727.65,0.00019178,2]
[391485530,1760619047223,-1752.53,0.00019178,2]
[391485532,1760619047232,-1132.96,0.00019178,2]
[391485535,1760619047242,-362.26789947,0.00019178,2]
[391485537,1760619047251,-698.87,0.00019178,2]
[391485539,1760619047260,-500.0,0.00019178,2]
[391485541,1760619047270,-690.18,0.00019178,2]
[391485543,1760619047279,-872.07,0.00019178,2]
[391485545,1760619047288,-628.04,0.00019178,2]
[391485547,1760619047297,-871.55,0.00019178,2]
[391485549,1760619047307,-500.0,0.00019178,2]
[391485551,1760619047316,-1148.96,0.00019178,2]
[391485553,1760619047326,-151.0,0.00019178,2]
[391485555,1760619047334,-151.0,0.00019178,2]
[391485557,1760619047343,-500.0,0.00019178,2]
[391485559,1760619047352,-919.17,0.00019178,2]
[391485561,1760619047361,-612.17192094,0.00019178,2]
[391485563,1760619047371,-500.0,0.00019178,2]
[391485565,1760619047380,-500.0,0.00019178,2]
[391485567,1760619047389,-500.0,0.00019178,2]
[391485569,1760619047398,-392.47941564,0.00019178,2]
[391485571,1760619047408,-151.0,0.00019178,2]
[391485573,1760619047417,-166.789639,0.00019178,2]
[391485575,1760619047426,-500.0,0.00019178,2]
[391485577,1760619047435,-151.0,0.00019178,2]
[391485579,1760619047446,-500.0,0.00019178,2]
[391485581,1760619047455,-154.39145,0.00019178,2]
[391485583,1760619047464,-1588.32,0.00019178,2]
[391485585,1760619047473,-523.78,0.00019178,2]
[391485587,1760619047483,-500.0,0.00019178,2]
[391485589,1760619047492,-500.0,0.00019178,2]
[391485591,1760619047501,-775.43,0.00019178,2]
[391485593,1760619047511,-151.0,0.00019178,2]
[391485595,1760619047522,-510.81,0.00019178,2]
[391485597,1760619047532,-736.15,0.00019178,2]
[391485599,1760619047541,-1071.25,0.00019178,2]
[391485602,1760619047552,-4373.75,0.00019178,2]
[391485604,1760619047561,-500.0,0.00019178,2]
[391485606,1760619047570,-500.0,0.00019178,2]
[391485608,1760619047579,-585.921952,0.00019178,2]
[391485609,1760619047589,-1539.27,0.00019178,2]
[391485612,1760619047599,-585.921952,0.00019178,2]
[391485614,1760619047608,-500.0,0.00019178,2]
[391485616,1760619047618,-551.69,0.00019178,2]
[391485618,1760619047627,-500.0,0.00019178,2]
[391485620,1760619047636,-585.921952,0.00019178,2]
[391485622,1760619047646,-151.0,0.00019178,2]
[391485624,1760619047655,-500.0,0.00019178,2]
[391485626,1760619047664,-500.0,0.00019178,2]
[391485637,1760619047765,-775.11,0.00019178,2]
[391485639,1760619047775,-585.921952,0.00019178,2]
[391485641,1760619047783,-500.0,0.00019178,2]
[391485643,1760619047793,-500.0,0.00019178,2]
[391485645,1760619047802,-2216.87,0.00019178,2]
[391485647,1760619047812,-2074.85,0.00019178,2]
[391485649,1760619047820,-684.52,0.00019178,2]
[391485651,1760619047830,-500.0,0.00019178,2]
[391485652,1760619047839,-579.46,0.00019178,2]
[391485654,1760619047849,-500.0,0.00019178,2]
[391485657,1760619047858,-2323.47,0.00019178,2]
[391485658,1760619047868,-2983.63,0.00019178,2]
[391485661,1760619047877,-2763.26,0.00019178,2]
[391485662,1760619047887,-3775.84,0.00019178,2]
[391485664,1760619047896,-500.0,0.00019178,2]
[391485666,1760619047904,-3131.8,0.00019178,2]
[391485668,1760619047914,-1212.34,0.00019178,2]
[391485670,1760619047923,-500.0,0.00019178,2]
[391485672,1760619047932,-500.0,0.00019178,2]
[391485674,1760619047942,-500.0,0.00019178,2]
[391485676,1760619047953,-500.0,0.00019178,2]
[391485678,1760619047962,-500.0,0.00019178,2]
[391485680,1760619047971,-1500.02,0.00019178,2]
[391485682,1760619047981,-998.94,0.00019178,2]
[391485684,1760619047990,-542.07,0.00019178,2]
[391485686,1760619047999,-7879.26,0.00019178,2]
[391485688,1760619048008,-1176.11,0.00019178,2]
[391485690,1760619048018,-632.76473651,0.00019178,2]
[391485692,1760619048027,-602.61,0.00019178,2]
[391485694,1760619048036,-500.0,0.00019178,2]
[391485696,1760619048045,-2662.31,0.00019178,2]
[391485698,1760619048054,-1798.92,0.00019178,2]
[391485700,1760619048063,-939.07,0.00019178,2]
[391485702,1760619048072,-500.0,0.00019178,2]
[391485704,1760619048081,-316.15705507,0.00019178,2]
[391485706,1760619048090,-500.0,0.00019178,2]
[391485708,1760619048099,-3401.07,0.00019178,2]
[391485710,1760619048108,-2157.37,0.00019178,2]
[391485712,1760619048117,-500.0,0.00019178,2]
[391485714,1760619048127,-500.0,0.00019178,2]
[391485716,1760619048136,-511.14,0.00019178,2]
[391485718,1760619048145,-672.61,0.00019178,2]
[391485720,1760619048154,-500.0,0.00019178,2]
[391485722,1760619048164,-3861.0,0.00019178,2]
[391485724,1760619048173,-503.53616584,0.00019178,2]
[391485726,1760619048182,-1000.0,0.00019178,2]
[391485728,1760619048191,-500.0,0.00019178,2]
[391485730,1760619048202,-500.0,0.00019178,2]
[391485732,1760619048211,-3341.44,0.00019178,2]
[391485734,1760619048220,-500.0,0.00019178,2]
[391485736,1760619048229,-500.0,0.00019178,2]
[391485738,1760619048238,-1585.44,0.00019178,2]
[391485740,1760619048248,-500.0,0.00019178,2]
[391485742,1760619048256,-500.0,0.00019178,2]
[391485744,1760619048269,-500.0,0.00019178,2]
[391485747,1760619048278,-5776.28,0.00019178,2]
[391485749,1760619048287,-151.0,0.00019178,2]
[391485751,1760619048298,-500.0,0.00019178,2]
[391485753,1760619048307,-500.0,0.00019178,2]
[391485755,1760619048316,-500.0,0.00019178,2]
[391485757,1760619048325,-1875.29,0.00019178,2]
[391485759,1760619048335,-151.0,0.00019178,2]
[391485761,1760619048344,-1343.33,0.00019178,2]
[391485763,1760619048353,-1590.61,0.00019178,2]
[391485765,1760619048362,-500.0,0.00019178,2]
[391485767,1760619048372,-500.0,0.00019178,2]
[391485769,1760619048381,-3683.08,0.00019178,2]
[391485771,1760619048391,-500.0,0.00019178,2]
[391485773,1760619048400,-834.27,0.00019178,2]
[391485775,1760619048409,-1584.25,0.00019178,2]
[391485777,1760619048419,-514.75786508,0.00019178,2]
[391485779,1760619048428,-500.0,0.00019178,2]
[391485781,1760619048438,-500.0,0.00019178,2]
[391485783,1760619048448,-555.19,0.00019178,2]
[391485785,1760619048457,-500.0,0.00019178,2]
[391485787,1760619048467,-500.0,0.00019178,2]
[391485789,1760619048476,-948.15,0.00019178,2]
[391485791,1760619048485,-766.6,0.00019178,2]
[391485793,1760619048494,-633.49,0.00019178,2]
[391485795,1760619048503,-947.83,0.00019178,2]
[391485797,1760619048512,-500.0,0.00019178,2]
[391485799,1760619048522,-3390.47,0.00019178,2]
[391485801,1760619048532,-6504.48,0.00019178,2]
[391485803,1760619048541,-500.0,0.00019178,2]
[391485805,1760619048551,-158.468465,0.00019178,2]
[391485807,1760619048560,-2777.54,0.00019178,2]
[391485809,1760619048569,-1848.4,0.00019178,2]
[391485811,1760619048578,-151.0,0.00019178,2]
[391485813,1760619048588,-2105.11,0.00019178,2]
[391485815,1760619048597,-1186.91,0.00019178,2]
[391485817,1760619048606,-2071.72,0.00019178,2]
[391485819,1760619048615,-514.93310741,0.00019178,2]
[391485821,1760619048625,-1088.95,0.00019178,2]
[391485823,1760619048634,-1601.87,0.00019178,2]
[391485825,1760619048643,-500.0,0.00019178,2]
[391485827,1760619048652,-7923.69,0.00019178,2]
[391485829,1760619048661,-500.0,0.00019178,2]